[Event "*** Titled Tuesday Blitz"]
[Site "Chess.com"]
[Date "2020.12.01"]
[Round "2"]
[White "Durarbayli"]
[Black "Atousa1"]
[Result "1-0"]
[WhiteElo "2760"]
[BlackElo "2485"]
[TimeControl "180+1"]
[EndTime "10:16:38 PST"]
[Termination "Durarbayli won by resignation"]

1. e4 {[%clk 0:03:00.5]} 1... e5 {[%clk 0:02:20.3]} 2. Nc3 {[%clk 0:02:59]} 2...
Nf6 {[%clk 0:02:16]} 3. Bc4 {[%clk 0:02:59.3]} 3... Bb4 {[%clk 0:02:10.1]} 4. d3
{[%clk 0:02:54.3]} 4... Nc6 {[%clk 0:02:07.1]} 5. Ne2 {[%clk 0:02:51]} 5... O-O
{[%clk 0:02:02.8]} 6. O-O {[%clk 0:02:50.7]} 6... h6 {[%clk 0:02:03.2]} 7. a3
{[%clk 0:02:44.3]} 7... Ba5 {[%clk 0:01:59]} 8. f4 {[%clk 0:02:39.2]} 8... d6
{[%clk 0:01:53.1]} 9. f5 {[%clk 0:02:39.1]} 9... Nd4 {[%clk 0:01:50]} 10. Nxd4
{[%clk 0:02:14.8]} 10... Bb6 {[%clk 0:01:44.9]} 11. Nd5 {[%clk 0:02:15.7]} 11...
Bxd4+ {[%clk 0:01:43.3]} 12. Kh1 {[%clk 0:02:12.8]} 12... Nxd5 {[%clk
0:01:30.4]} 13. Bxd5 {[%clk 0:02:12.2]} 13... c6 {[%clk 0:01:30.8]} 14. Bb3
{[%clk 0:02:09.5]} 14... Qf6 {[%clk 0:01:30]} 15. Qh5 {[%clk 0:01:41.1]} 15...
Rd8 {[%clk 0:01:27]} 16. g4 {[%clk 0:01:31.9]} 16... g5 {[%clk 0:01:09.1]} 17.
h4 {[%clk 0:01:17.3]} 17... gxh4 {[%clk 0:00:50.5]} 18. Bxh6 {[%clk 0:00:59.6]}
18... d5 {[%clk 0:00:32.1]} 19. Bg5 {[%clk 0:00:56.3]} 19... Qd6 {[%clk
0:00:32.2]} 20. Qxh4 {[%clk 0:00:48.2]} 20... f6 {[%clk 0:00:20.9]} 21. Bxf6
{[%clk 0:00:46.1]} 21... Rd7 {[%clk 0:00:21.4]} 22. Qh8+ {[%clk 0:00:31.4]}
22... Kf7 {[%clk 0:00:20.9]} 23. g5 {[%clk 0:00:29.6]} 1-0

[Event "*** Titled Tuesday Blitz"]
[Site "Chess.com"]
[Date "2020.12.01"]
[Round "2"]
[White "CalinGheorghiu"]
[Black "fish7728"]
[Result "1-0"]
[WhiteElo "2396"]
[BlackElo "2150"]
[TimeControl "180+1"]
[EndTime "10:16:38 PST"]
[Termination "CalinGheorghiu won by resignation"]

1. e4 {[%clk 0:03:00.2]} 1... c5 {[%clk 0:02:59]} 2. Nf3 {[%clk 0:02:59.7]} 2...
e6 {[%clk 0:02:58.9]} 3. g3 {[%clk 0:02:57.4]} 3... b6 {[%clk 0:02:57.6]} 4. Bg2
{[%clk 0:02:56.9]} 4... Bb7 {[%clk 0:02:58.1]} 5. d3 {[%clk 0:02:56.9]} 5... Qc7
{[%clk 0:02:51.1]} 6. O-O {[%clk 0:02:55.5]} 6... Nf6 {[%clk 0:02:49.8]} 7. a4
{[%clk 0:02:54.7]} 7... d5 {[%clk 0:02:48.4]} 8. e5 {[%clk 0:02:54.9]} 8... Nfd7
{[%clk 0:02:46.4]} 9. Re1 {[%clk 0:02:55.8]} 9... Nc6 {[%clk 0:02:44.8]} 10. Bf4
{[%clk 0:02:55.2]} 10... h6 {[%clk 0:02:45]} 11. h4 {[%clk 0:02:53.3]} 11... Be7
{[%clk 0:02:41.6]} 12. c3 {[%clk 0:02:45.9]} 12... O-O-O {[%clk 0:02:41.2]} 13.
d4 {[%clk 0:02:44]} 13... c4 {[%clk 0:02:36.5]} 14. h5 {[%clk 0:02:35.5]} 14...
g5 {[%clk 0:02:34.5]} 15. hxg6 {[%clk 0:02:35.5]} 15... fxg6 {[%clk 0:02:34.4]}
16. Bh3 {[%clk 0:02:33.1]} 16... g5 {[%clk 0:02:25.1]} 17. Be3 {[%clk 0:02:30]}
17... Nf8 {[%clk 0:02:19.5]} 18. b3 {[%clk 0:02:28.6]} 18... cxb3 {[%clk
0:02:16.8]} 19. Qxb3 {[%clk 0:02:28.1]} 19... Na5 {[%clk 0:02:17.1]} 20. Qd1
{[%clk 0:02:24.8]} 20... Kb8 {[%clk 0:02:13.1]} 21. Nfd2 {[%clk 0:02:20.9]}
21... h5 {[%clk 0:02:08.3]} 22. Na3 {[%clk 0:02:18.3]} 22... a6 {[%clk
0:02:03.4]} 23. c4 {[%clk 0:02:10.6]} 23... g4 {[%clk 0:01:58.9]} 24. Bg2 {[%clk
0:02:08.9]} 24... h4 {[%clk 0:01:56.4]} 25. cxd5 {[%clk 0:02:04.8]} 25... Bxd5
{[%clk 0:01:46.3]} 26. Bxd5 {[%clk 0:02:03]} 26... exd5 {[%clk 0:01:43]} 27.
Qxg4 {[%clk 0:01:59.8]} 27... hxg3 {[%clk 0:01:42.6]} 28. fxg3 {[%clk 0:01:59]}
28... Qd7 {[%clk 0:01:36.1]} 29. e6 {[%clk 0:01:56.3]} 29... Qe8 {[%clk
0:01:17.9]} 30. Bf4+ {[%clk 0:01:54.2]} 30... Ka7 {[%clk 0:01:17.8]} 31. Rec1
{[%clk 0:01:47.7]} 31... Rc8 {[%clk 0:01:13.8]} 32. Rxc8 {[%clk 0:01:13.2]}
32... Qxc8 {[%clk 0:01:10.3]} 33. Nf3 {[%clk 0:01:07.3]} 33... Bxa3 {[%clk
0:01:00.7]} 34. Qg7+ {[%clk 0:00:59.6]} 34... Be7 {[%clk 0:00:43.2]} 35. Qxe7+
{[%clk 0:00:45.1]} 35... Ka8 {[%clk 0:00:42.7]} 36. Rc1 {[%clk 0:00:43.8]} 36...
Qxe6 {[%clk 0:00:40.5]} 37. Qd8+ {[%clk 0:00:42.1]} 1-0

[Event "*** Titled Tuesday Blitz"]
[Site "Chess.com"]
[Date "2020.12.01"]
[Round "2"]
[White "kuban1991"]
[Black "amatatanav"]
[Result "1-0"]
[WhiteElo "2814"]
[BlackElo "2418"]
[TimeControl "180+1"]
[EndTime "10:16:42 PST"]
[Termination "kuban1991 won on time"]

1. Nf3 {[%clk 0:02:59.7]} 1... Nf6 {[%clk 0:02:58.9]} 2. g3 {[%clk 0:02:59.3]}
2... e6 {[%clk 0:02:58.5]} 3. Bg2 {[%clk 0:03:00.2]} 3... d5 {[%clk 0:02:59.1]}
4. O-O {[%clk 0:03:00.8]} 4... Be7 {[%clk 0:02:59.6]} 5. d3 {[%clk 0:03:01.3]}
5... O-O {[%clk 0:02:59.5]} 6. Nbd2 {[%clk 0:03:02.2]} 6... c5 {[%clk
0:02:59.4]} 7. e4 {[%clk 0:03:02.2]} 7... Nc6 {[%clk 0:02:57.2]} 8. Re1 {[%clk
0:03:01.6]} 8... b5 {[%clk 0:02:55.5]} 9. e5 {[%clk 0:03:01.4]} 9... Nd7 {[%clk
0:02:54.7]} 10. Nf1 {[%clk 0:03:02]} 10... Bb7 {[%clk 0:02:53.7]} 11. h4 {[%clk
0:03:01.9]} 11... Qb6 {[%clk 0:02:53.7]} 12. h5 {[%clk 0:03:02]} 12... Rfc8
{[%clk 0:02:45.5]} 13. h6 {[%clk 0:03:01.7]} 13... g6 {[%clk 0:02:45.4]} 14.
N1h2 {[%clk 0:03:01.7]} 14... c4 {[%clk 0:02:35.1]} 15. d4 {[%clk 0:03:01.4]}
15... c3 {[%clk 0:02:27.4]} 16. b3 {[%clk 0:02:58.4]} 16... a5 {[%clk
0:02:24.7]} 17. a3 {[%clk 0:02:55.6]} 17... a4 {[%clk 0:01:28.8]} 18. b4 {[%clk
0:02:54.7]} 18... Nxb4 {[%clk 0:01:26.3]} 19. axb4 {[%clk 0:02:55.6]} 19... Bxb4
{[%clk 0:01:26.7]} 20. Ng4 {[%clk 0:02:54.7]} 20... Be7 {[%clk 0:01:23.7]} 21.
Bg5 {[%clk 0:02:53.5]} 21... Bf8 {[%clk 0:01:17.6]} 22. Qc1 {[%clk 0:02:52.8]}
22... b4 {[%clk 0:01:14.2]} 23. Qf4 {[%clk 0:02:02.2]} 23... b3 {[%clk
0:01:10.2]} 24. Bh4 {[%clk 0:02:02]} 24... b2 {[%clk 0:01:04.9]} 25. Ng5 {[%clk
0:02:00.2]} 25... Nxe5 {[%clk 0:00:13.8]} 26. Qxe5 {[%clk 0:01:37.7]} 26... Qc7
{[%clk 0:00:05.6]} 27. Rab1 {[%clk 0:01:23.7]} 27... Qxe5 {[%clk 0:00:05.2]} 28.
dxe5 {[%clk 0:01:24.6]} 28... Rc7 {[%clk 0:00:04.9]} 29. Re3 {[%clk 0:01:03.5]}
29... a3 {[%clk 0:00:01.3]} 30. Rxc3 {[%clk 0:01:01.6]} 30... Rxc3 {[%clk
0:00:02.2]} 31. Nf6+ {[%clk 0:01:01.1]} 1-0

[Event "*** Titled Tuesday Blitz"]
[Site "Chess.com"]
[Date "2020.12.01"]
[Round "2"]
[White "Sueetin"]
[Black "Malev212"]
[Result "0-1"]
[WhiteElo "2263"]
[BlackElo "2541"]
[TimeControl "180+1"]
[EndTime "10:16:42 PST"]
[Termination "Malev212 won by resignation"]

1. e4 {[%clk 0:03:00.9]} 1... c5 {[%clk 0:02:55.1]} 2. Nf3 {[%clk 0:03:00.7]}
2... e6 {[%clk 0:02:54.8]} 3. d4 {[%clk 0:03:00.6]} 3... cxd4 {[%clk 0:02:55.1]}
4. Nxd4 {[%clk 0:03:00.8]} 4... Nf6 {[%clk 0:02:55.5]} 5. Nc3 {[%clk 0:03:00.5]}
5... d6 {[%clk 0:02:56.1]} 6. Be3 {[%clk 0:02:49.7]} 6... a6 {[%clk 0:02:50.4]}
7. Be2 {[%clk 0:02:41.6]} 7... Qc7 {[%clk 0:02:48]} 8. O-O {[%clk 0:02:40.3]}
8... Nbd7 {[%clk 0:02:45.3]} 9. f4 {[%clk 0:02:31.1]} 9... b5 {[%clk 0:02:43.7]}
10. Bf3 {[%clk 0:02:19.9]} 10... Bb7 {[%clk 0:02:41.8]} 11. a3 {[%clk
0:02:19.1]} 11... Be7 {[%clk 0:02:35.4]} 12. g4 {[%clk 0:02:10.3]} 12... Nc5
{[%clk 0:02:34.6]} 13. e5 {[%clk 0:01:21.2]} 13... dxe5 {[%clk 0:02:33.7]} 14.
fxe5 {[%clk 0:01:21.5]} 14... Nfd7 {[%clk 0:02:14.4]} 15. b4 {[%clk 0:00:56]}
15... Na4 {[%clk 0:02:06.1]} 16. Nxa4 {[%clk 0:00:36.9]} 16... bxa4 {[%clk
0:02:05]} 17. Nxe6 {[%clk 0:00:18]} 17... fxe6 {[%clk 0:02:01.9]} 18. Bxb7
{[%clk 0:00:16.8]} 18... Qxb7 {[%clk 0:02:01.5]} 19. c4 {[%clk 0:00:16.3]} 19...
Nxe5 {[%clk 0:01:39.4]} 20. Qxa4+ {[%clk 0:00:15]} 20... Qc6 {[%clk 0:01:38.1]}
21. Qa5 {[%clk 0:00:09.9]} 21... Nxc4 {[%clk 0:01:31.8]} 22. Qh5+ {[%clk
0:00:09.4]} 22... g6 {[%clk 0:01:31.4]} 23. Qh6 {[%clk 0:00:08.9]} 23... Qe4
{[%clk 0:01:16.4]} 24. Bc5 {[%clk 0:00:03.7]} 24... Qxg4+ {[%clk 0:01:14.1]} 25.
Kh1 {[%clk 0:00:03.5]} 25... Bxc5 {[%clk 0:01:00.1]} 26. bxc5 {[%clk 0:00:04.4]}
26... O-O-O {[%clk 0:00:55.9]} 27. Rf4 {[%clk 0:00:04.5]} 27... Rd1+ {[%clk
0:00:52.9]} 28. Rxd1 {[%clk 0:00:04.7]} 28... Qxd1+ {[%clk 0:00:52.6]} 29. Kg2
{[%clk 0:00:05.2]} 29... Qd2+ {[%clk 0:00:52.1]} 30. Rf2 {[%clk 0:00:05.2]}
30... Qxh6 {[%clk 0:00:51.1]} 0-1

[Event "*** Titled Tuesday Blitz"]
[Site "Chess.com"]
[Date "2020.12.01"]
[Round "2"]
[White "Jospem"]
[Black "Anna_ChessMate"]
[Result "1-0"]
[WhiteElo "2966"]
[BlackElo "2571"]
[TimeControl "180+1"]
[EndTime "10:16:45 PST"]
[Termination "Jospem won by resignation"]

1. e4 {[%clk 0:02:59.6]} 1... c6 {[%clk 0:02:59.5]} 2. Nf3 {[%clk 0:02:58.8]}
2... d5 {[%clk 0:03:00.4]} 3. d3 {[%clk 0:02:59.7]} 3... dxe4 {[%clk 0:02:58.6]}
4. dxe4 {[%clk 0:03:00.6]} 4... Qxd1+ {[%clk 0:02:59.3]} 5. Kxd1 {[%clk
0:03:01.5]} 5... Bg4 {[%clk 0:02:54.6]} 6. Be2 {[%clk 0:03:01.4]} 6... Nd7
{[%clk 0:02:55.2]} 7. Ne1 {[%clk 0:03:01.6]} 7... Bxe2+ {[%clk 0:02:54.5]} 8.
Kxe2 {[%clk 0:03:02.1]} 8... O-O-O {[%clk 0:02:55]} 9. Nd3 {[%clk 0:03:01.5]}
9... e5 {[%clk 0:02:53.6]} 10. Be3 {[%clk 0:03:01.1]} 10... Ngf6 {[%clk
0:02:45]} 11. f3 {[%clk 0:03:00.6]} 11... Ne8 {[%clk 0:02:37.1]} 12. Nd2 {[%clk
0:02:58.4]} 12... b6 {[%clk 0:02:31.9]} 13. a4 {[%clk 0:02:56.2]} 13... f6
{[%clk 0:02:20]} 14. a5 {[%clk 0:02:54.6]} 14... Kb7 {[%clk 0:02:18.4]} 15. Ra2
{[%clk 0:02:44.3]} 15... b5 {[%clk 0:02:03.5]} 16. a6+ {[%clk 0:02:39.3]} 16...
Ka8 {[%clk 0:01:51.4]} 17. c4 {[%clk 0:02:39.2]} 17... Nc7 {[%clk 0:00:59.5]}
18. Rc1 {[%clk 0:02:38.5]} 18... Bd6 {[%clk 0:00:55.9]} 19. b4 {[%clk
0:02:20.5]} 19... Ne6 {[%clk 0:00:45.6]} 20. Nb3 {[%clk 0:02:12.3]} 20... Rc8
{[%clk 0:00:26.4]} 21. Rac2 {[%clk 0:02:08.3]} 21... bxc4 {[%clk 0:00:19.2]} 22.
Rxc4 {[%clk 0:02:08]} 22... Nb8 {[%clk 0:00:19.9]} 23. b5 {[%clk 0:01:53.3]}
23... Nc7 {[%clk 0:00:19.8]} 24. bxc6 {[%clk 0:01:50.9]} 24... Nbxa6 {[%clk
0:00:19.1]} 25. Na5 {[%clk 0:01:43.2]} 25... Be7 {[%clk 0:00:18.2]} 26. Nb7
{[%clk 0:01:40.8]} 26... Ne6 {[%clk 0:00:15.1]} 27. Ra4 {[%clk 0:01:33.4]} 27...
Nec7 {[%clk 0:00:15.4]} 28. Rca1 {[%clk 0:01:31.4]} 28... Kb8 {[%clk 0:00:09.6]}
29. Rxa6 {[%clk 0:01:29.4]} 29... Nxa6 {[%clk 0:00:10.5]} 30. Rxa6 {[%clk
0:01:29.9]} 30... Kc7 {[%clk 0:00:08.1]} 31. f4 {[%clk 0:01:17.5]} 31... Ra8
{[%clk 0:00:05.7]} 32. fxe5 {[%clk 0:01:15.9]} 32... fxe5 {[%clk 0:00:06.6]} 33.
Nxe5 {[%clk 0:01:16.7]} 33... g5 {[%clk 0:00:06.3]} 34. Bf2 {[%clk 0:01:06.7]}
34... h5 {[%clk 0:00:05.3]} 35. Ng6 {[%clk 0:01:07]} 35... Bd6 {[%clk
0:00:03.2]} 36. Nxh8 {[%clk 0:01:05.6]} 1-0

[Event "*** Titled Tuesday Blitz"]
[Site "Chess.com"]
[Date "2020.12.01"]
[Round "2"]
[White "Snegokhod"]
[Black "UmarovSabir"]
[Result "1-0"]
[WhiteElo "2449"]
[BlackElo "2255"]
[TimeControl "180+1"]
[EndTime "10:16:45 PST"]
[Termination "Snegokhod won on time"]

1. e4 {[%clk 0:01:46.2]} 1... g6 {[%clk 0:02:57.1]} 2. d4 {[%clk 0:01:45.5]}
2... Bg7 {[%clk 0:02:56.5]} 3. Nc3 {[%clk 0:01:45.2]} 3... c6 {[%clk 0:02:55.9]}
4. Nf3 {[%clk 0:01:44.7]} 4... d5 {[%clk 0:02:55.7]} 5. Bd3 {[%clk 0:01:45]}
5... Bg4 {[%clk 0:02:45.6]} 6. h3 {[%clk 0:01:40]} 6... Bxf3 {[%clk 0:02:42.2]}
7. Qxf3 {[%clk 0:01:40]} 7... dxe4 {[%clk 0:02:42.2]} 8. Nxe4 {[%clk 0:01:39.7]}
8... Qxd4 {[%clk 0:02:37.6]} 9. O-O {[%clk 0:01:39.5]} 9... Nf6 {[%clk
0:02:31.3]} 10. c3 {[%clk 0:01:37.6]} 10... Qd8 {[%clk 0:02:11]} 11. Nxf6+
{[%clk 0:01:36.3]} 11... Bxf6 {[%clk 0:02:09]} 12. Bh6 {[%clk 0:01:35.6]} 12...
Nd7 {[%clk 0:02:08.1]} 13. Rad1 {[%clk 0:01:34.9]} 13... Qc7 {[%clk 0:02:02.1]}
14. Qe2 {[%clk 0:01:30.3]} 14... O-O-O {[%clk 0:01:57.3]} 15. a4 {[%clk
0:01:30.1]} 15... Nc5 {[%clk 0:01:51.9]} 16. Bc4 {[%clk 0:01:29.7]} 16... e6
{[%clk 0:01:46.8]} 17. a5 {[%clk 0:01:28]} 17... Rxd1 {[%clk 0:01:42.1]} 18.
Rxd1 {[%clk 0:01:27.6]} 18... Rd8 {[%clk 0:01:41.5]} 19. Rc1 {[%clk 0:01:22.6]}
19... Qe5 {[%clk 0:01:32.7]} 20. Be3 {[%clk 0:01:17.6]} 20... Kb8 {[%clk
0:01:06.2]} 21. Qf3 {[%clk 0:01:14.3]} 21... Bg5 {[%clk 0:00:45.3]} 22. Bd4
{[%clk 0:01:02.7]} 22... Qf5 {[%clk 0:00:38.6]} 23. Qxf5 {[%clk 0:01:02]} 23...
gxf5 {[%clk 0:00:36.4]} 24. Re1 {[%clk 0:00:54.7]} 24... Ne4 {[%clk 0:00:28.1]}
25. g4 {[%clk 0:00:51.6]} 25... Nd2 {[%clk 0:00:19.5]} 26. Be2 {[%clk
0:00:51.3]} 26... fxg4 {[%clk 0:00:10.3]} 27. hxg4 {[%clk 0:00:51.7]} 27... Nb3
{[%clk 0:00:03.1]} 28. Be5+ {[%clk 0:00:51.2]} 1-0

[Event "*** Titled Tuesday Blitz"]
[Site "Chess.com"]
[Date "2020.12.01"]
[Round "2"]
[White "ExtremeLearner"]
[Black "MarcLonoff"]
[Result "1-0"]
[WhiteElo "2413"]
[BlackElo "2187"]
[TimeControl "180+1"]
[EndTime "10:16:47 PST"]
[Termination "ExtremeLearner won on time"]

1. d4 {[%clk 0:02:59.9]} 1... e6 {[%clk 0:02:58.2]} 2. Nf3 {[%clk 0:02:57.2]}
2... f5 {[%clk 0:02:56.8]} 3. g3 {[%clk 0:02:56.8]} 3... Nf6 {[%clk 0:02:55.5]}
4. Bg2 {[%clk 0:02:52.3]} 4... d5 {[%clk 0:02:50.8]} 5. c4 {[%clk 0:02:45.6]}
5... c6 {[%clk 0:02:50.2]} 6. Nc3 {[%clk 0:02:42.6]} 6... Bd6 {[%clk 0:02:45.9]}
7. O-O {[%clk 0:02:38.6]} 7... O-O {[%clk 0:02:44.8]} 8. Qb3 {[%clk 0:02:31.9]}
8... Kh8 {[%clk 0:02:42.7]} 9. Bg5 {[%clk 0:02:20.7]} 9... Qe8 {[%clk
0:02:40.8]} 10. Bxf6 {[%clk 0:02:07.1]} 10... Rxf6 {[%clk 0:02:28.9]} 11. Ne5
{[%clk 0:02:05.5]} 11... Rf8 {[%clk 0:01:56.1]} 12. f4 {[%clk 0:01:57.1]} 12...
Nd7 {[%clk 0:01:27.8]} 13. a4 {[%clk 0:01:47.2]} 13... Nf6 {[%clk 0:01:03.5]}
14. a5 {[%clk 0:01:42.4]} 14... Bxe5 {[%clk 0:00:55.7]} 15. dxe5 {[%clk
0:01:33.6]} 15... Nd7 {[%clk 0:00:41.4]} 16. cxd5 {[%clk 0:01:27.9]} 16... cxd5
{[%clk 0:00:40.5]} 17. Nb5 {[%clk 0:01:20.9]} 17... Qe7 {[%clk 0:00:31.4]} 18.
Nd6 {[%clk 0:01:16.5]} 18... Nc5 {[%clk 0:00:30.5]} 19. Qb4 {[%clk 0:01:10.6]}
19... Na6 {[%clk 0:00:27.9]} 20. Qd4 {[%clk 0:01:01.5]} 20... Qd7 {[%clk
0:00:23.3]} 21. b4 {[%clk 0:01:00.2]} 21... Nc7 {[%clk 0:00:19.9]} 22. Qd3
{[%clk 0:00:56.9]} 22... a6 {[%clk 0:00:19.2]} 23. Rac1 {[%clk 0:00:54.3]} 23...
Nb5 {[%clk 0:00:16.5]} 24. Nxb5 {[%clk 0:00:53.6]} 24... axb5 {[%clk 0:00:15.3]}
25. Rc5 {[%clk 0:00:53.4]} 25... Qd8 {[%clk 0:00:04.7]} 26. Rfc1 {[%clk
0:00:52.5]} 26... Bd7 {[%clk 0:00:04.4]} 27. Rc7 {[%clk 0:00:52.5]} 27... Bc6
{[%clk 0:00:03.7]} 28. R7xc6 {[%clk 0:00:50.6]} 28... bxc6 {[%clk 0:00:03.2]}
29. Rxc6 {[%clk 0:00:51.5]} 29... Rc8 {[%clk 0:00:02.4]} 30. Rd6 {[%clk
0:00:51.2]} 30... Qc7 {[%clk 0:00:01.7]} 31. h3 {[%clk 0:00:49]} 1-0

[Event "*** Titled Tuesday Blitz"]
[Site "Chess.com"]
[Date "2020.12.01"]
[Round "2"]
[White "tk22h"]
[Black "tapu2"]
[Result "1-0"]
[WhiteElo "2331"]
[BlackElo "2681"]
[TimeControl "180+1"]
[EndTime "10:16:48 PST"]
[Termination "tk22h won by resignation"]

1. d4 {[%clk 0:03:00.7]} 1... Nf6 {[%clk 0:02:58.6]} 2. Nf3 {[%clk 0:03:00.3]}
2... g6 {[%clk 0:02:58]} 3. g3 {[%clk 0:02:59.4]} 3... Bg7 {[%clk 0:02:58]} 4.
Bg2 {[%clk 0:02:59.7]} 4... O-O {[%clk 0:02:58.7]} 5. O-O {[%clk 0:02:59.9]}
5... d6 {[%clk 0:02:58.4]} 6. b3 {[%clk 0:02:58.4]} 6... a5 {[%clk 0:02:54.1]}
7. a4 {[%clk 0:02:57.6]} 7... Nc6 {[%clk 0:02:51.7]} 8. Bb2 {[%clk 0:02:57.5]}
8... Ne4 {[%clk 0:02:51.9]} 9. Nbd2 {[%clk 0:02:56]} 9... f5 {[%clk 0:02:43.8]}
10. e3 {[%clk 0:02:55.3]} 10... Qe8 {[%clk 0:02:35.3]} 11. Nxe4 {[%clk
0:02:40.1]} 11... fxe4 {[%clk 0:02:35.5]} 12. Nd2 {[%clk 0:02:40.3]} 12... d5
{[%clk 0:02:35.4]} 13. f3 {[%clk 0:02:40.5]} 13... exf3 {[%clk 0:02:35]} 14.
Rxf3 {[%clk 0:02:39.1]} 14... Bf5 {[%clk 0:02:31.5]} 15. Rc1 {[%clk 0:02:35.9]}
15... Qd7 {[%clk 0:02:25.7]} 16. Rf2 {[%clk 0:02:34.6]} 16... h5 {[%clk
0:02:18.7]} 17. e4 {[%clk 0:02:30]} 17... Bg4 {[%clk 0:02:16.4]} 18. Qe1 {[%clk
0:02:29.9]} 18... e6 {[%clk 0:02:06.8]} 19. Qe3 {[%clk 0:02:24.5]} 19... Kh7
{[%clk 0:01:47.2]} 20. Re1 {[%clk 0:02:07]} 20... Bh6 {[%clk 0:01:45.3]} 21. Qc3
{[%clk 0:02:05.2]} 21... Rxf2 {[%clk 0:01:41.2]} 22. Kxf2 {[%clk 0:02:06.1]}
22... h4 {[%clk 0:01:36.1]} 23. Nf3 {[%clk 0:02:04.5]} 23... h3 {[%clk
0:01:34.5]} 24. Bh1 {[%clk 0:01:56.8]} 24... Rf8 {[%clk 0:01:33.2]} 25. Kg1
{[%clk 0:01:55.2]} 25... Bg7 {[%clk 0:01:15.3]} 26. Qd3 {[%clk 0:01:52.5]} 26...
Bxf3 {[%clk 0:01:08.6]} 27. Bxf3 {[%clk 0:01:51.1]} 27... Nxd4 {[%clk
0:01:09.1]} 28. Bg4 {[%clk 0:01:36.4]} 28... Qf7 {[%clk 0:00:59.2]} 29. Bxd4
{[%clk 0:01:34.3]} 29... e5 {[%clk 0:00:54]} 30. Bc5 {[%clk 0:01:26.5]} 30...
Rd8 {[%clk 0:00:52.6]} 31. Qf3 {[%clk 0:01:16.3]} 31... Bf6 {[%clk 0:00:40.4]}
32. Bxh3 {[%clk 0:01:13.1]} 32... b6 {[%clk 0:00:38.9]} 33. Bf2 {[%clk
0:01:12.2]} 33... d4 {[%clk 0:00:35.9]} 34. Bf1 {[%clk 0:01:12]} 34... Qe7
{[%clk 0:00:35]} 35. Bd3 {[%clk 0:01:08.3]} 35... Qg7 {[%clk 0:00:35.9]} 36. Rf1
{[%clk 0:01:07.9]} 36... Rf8 {[%clk 0:00:35.6]} 37. Be1 {[%clk 0:01:07.8]} 37...
Qe7 {[%clk 0:00:34.1]} 38. Bd2 {[%clk 0:01:06.4]} 38... Kg7 {[%clk 0:00:34.2]}
39. Qg4 {[%clk 0:01:06.1]} 39... Rh8 {[%clk 0:00:34.2]} 40. Rf3 {[%clk
0:01:05.8]} 40... Rh7 {[%clk 0:00:33.3]} 41. Kg2 {[%clk 0:01:06]} 41... Rh8
{[%clk 0:00:33.3]} 42. h4 {[%clk 0:01:05.9]} 42... Rh7 {[%clk 0:00:32.9]} 43.
Bg5 {[%clk 0:01:05.3]} 43... Bxg5 {[%clk 0:00:32.5]} 44. Qxg5 {[%clk 0:01:05.6]}
44... Qxg5 {[%clk 0:00:32.7]} 45. hxg5 {[%clk 0:01:05.3]} 45... Rh5 {[%clk
0:00:33.3]} 46. Rf6 {[%clk 0:01:05.3]} 46... Rxg5 {[%clk 0:00:33.2]} 47. Rc6
{[%clk 0:01:05.5]} 1-0

[Event "*** Titled Tuesday Blitz"]
[Site "Chess.com"]
[Date "2020.12.01"]
[Round "2"]
[White "HrvojeZagreb"]
[Black "TimurGareyev"]
[Result "0-1"]
[WhiteElo "2253"]
[BlackElo "2615"]
[TimeControl "180+1"]
[EndTime "10:16:49 PST"]
[Termination "TimurGareyev won by resignation"]

1. d4 {[%clk 0:02:51.1]} 1... d6 {[%clk 0:02:58.9]} 2. e4 {[%clk 0:02:46.4]}
2... g6 {[%clk 0:02:55.2]} 3. Nc3 {[%clk 0:02:45.5]} 3... a6 {[%clk 0:02:53.7]}
4. Be3 {[%clk 0:02:45]} 4... Nd7 {[%clk 0:02:51.8]} 5. Qd2 {[%clk 0:02:44.7]}
5... b5 {[%clk 0:02:51.4]} 6. O-O-O {[%clk 0:02:31.6]} 6... e6 {[%clk
0:02:48.5]} 7. f3 {[%clk 0:02:21.1]} 7... Nb6 {[%clk 0:02:47]} 8. h4 {[%clk
0:02:11.2]} 8... Nf6 {[%clk 0:02:41.8]} 9. Bg5 {[%clk 0:02:02.2]} 9... Be7
{[%clk 0:02:37.7]} 10. Bh6 {[%clk 0:01:57.7]} 10... Bb7 {[%clk 0:02:19.4]} 11.
Nh3 {[%clk 0:01:48.6]} 11... Qd7 {[%clk 0:02:15]} 12. Ng5 {[%clk 0:01:33]} 12...
Bf8 {[%clk 0:02:14.1]} 13. Bxf8 {[%clk 0:01:28.1]} 13... Rxf8 {[%clk 0:02:14.9]}
14. h5 {[%clk 0:01:22.3]} 14... h6 {[%clk 0:02:08.9]} 15. hxg6 {[%clk
0:01:14.1]} 15... hxg5 {[%clk 0:02:07.3]} 16. Qxg5 {[%clk 0:01:15]} 16... fxg6
{[%clk 0:02:05.4]} 17. Qxg6+ {[%clk 0:01:11]} 17... Qf7 {[%clk 0:02:05.3]} 18.
Qg3 {[%clk 0:01:06.6]} 18... Rg8 {[%clk 0:02:03.9]} 19. Qh3 {[%clk 0:01:03.7]}
19... O-O-O {[%clk 0:02:02.7]} 20. d5 {[%clk 0:01:03]} 20... Rde8 {[%clk
0:01:57]} 21. a4 {[%clk 0:00:48.2]} 21... bxa4 {[%clk 0:01:55.4]} 22. Rd4 {[%clk
0:00:42.6]} 22... Kb8 {[%clk 0:01:52.9]} 23. Nxa4 {[%clk 0:00:39.1]} 23... exd5
{[%clk 0:01:49]} 24. Rb4 {[%clk 0:00:35]} 24... Nxa4 {[%clk 0:01:46.5]} 25. Rxa4
{[%clk 0:00:31.5]} 25... dxe4 {[%clk 0:01:44.5]} 26. Bxa6 {[%clk 0:00:31.6]}
26... Bxa6 {[%clk 0:01:44.6]} 27. Rxa6 {[%clk 0:00:32.3]} 27... Qc4 {[%clk
0:01:44.8]} 28. Ra3 {[%clk 0:00:31]} 28... Nd5 {[%clk 0:01:41.5]} 29. Qd7 {[%clk
0:00:17.4]} 29... Nb4 {[%clk 0:01:38.4]} 30. Rc3 {[%clk 0:00:08.1]} 30... Na2+
{[%clk 0:01:37.7]} 31. Kb1 {[%clk 0:00:07]} 31... Nxc3+ {[%clk 0:01:37.4]} 32.
bxc3 {[%clk 0:00:07.9]} 32... exf3 {[%clk 0:01:32.6]} 33. Kc1 {[%clk 0:00:05.1]}
33... fxg2 {[%clk 0:01:28.5]} 34. Rg1 {[%clk 0:00:05.5]} 34... Re2 {[%clk
0:01:23.6]} 35. Kb2 {[%clk 0:00:02.1]} 35... Rg3 {[%clk 0:01:07.2]} 36. Ra1
{[%clk 0:00:01.2]} 0-1